fUSD/lending_fUSD_20241026
["ID","MTS","AMOUNT","RATE_DAILY","PERIOD"]
[340837777,1729903841584,-634.0,0.00054795,120]
[340837778,1729903841593,-500.0,0.00054795,120]
[340837779,1729903841603,-250.0,0.00054795,120]
[340837780,1729903841612,-250.0,0.00054795,120]
[340837781,1729903841621,-250.0,0.00054795,120]
[340837782,1729903841630,-250.0,0.00054795,120]
[340837783,1729903841639,-250.0,0.00054795,120]
[340837784,1729903841648,-250.0,0.00054795,120]
[340837785,1729903841658,-250.0,0.00054795,120]
[340837786,1729903841667,-250.0,0.00054795,120]
[340837787,1729903841676,-250.0,0.00054795,120]
[340837788,1729903841686,-250.0,0.00054795,120]
[340837789,1729903841696,-250.0,0.00054795,120]
[340837790,1729903841705,-253.252671,0.00054795,120]
[340837791,1729903841714,-3000.0,0.000548,2]
[340837792,1729903841723,-8211.5804105,0.0005498,11]
[340837793,1729903841732,-8211.5804105,0.0005499,11]
[340837794,1729903841742,-1012.1800785,0.00055,10]
[340837795,1729903841752,-918.45,0.00055,120]
[340837796,1729903841762,-11825.14,0.00055,120]
[340837797,1729903841771,-4699.1,0.00055,120]
[340837798,1729903841780,-151.0,0.00055,120]
[340837799,1729903841789,-150.86,0.00055479,120]
[340837800,1729903841798,-451.228957,0.00055589,120]
[340837801,1729903841807,-8211.5804105,0.00055686,11]
[340837802,1729903841816,-151.0,0.00055687,14]
[340837803,1729903841825,-357.44234493,0.00055695,120]
[340837804,1729903841836,-646.219306,0.00055696,120]
[340837805,1729903841845,-646.219306,0.00055696,120]
[340837806,1729903841854,-151.0,0.00055696,120]
[340837807,1729903841863,-207.120679,0.00055696,120]
[340837808,1729903841872,-207.120679,0.00055696,120]
[340837809,1729903841881,-151.262348,0.00055696,120]
[340837810,1729903841896,-151.262348,0.00055696,120]
[340837811,1729903841906,-151.0,0.00055707,120]
[340837812,1729903841915,-628.427735,0.00055707,120]
[340837813,1729903841925,-628.427735,0.00055707,120]
[340837814,1729903841934,-151.0,0.00055707,110]
[340837815,1729903841943,-151.0,0.00055707,120]
[340837816,1729903841953,-242.021079,0.00055707,120]
[340837817,1729903841963,-287.917486,0.00055707,120]
[340837818,1729903841972,-3413.12804557,0.00055733,15]
[340837819,1729903841981,-167.8,0.00055767,120]
[340837820,1729903841991,-154.48,0.00056067,120]
[340837821,1729903842000,-1000.0,0.00056318,120]
[340837822,1729903842009,-151.0,0.00056738,120]
[340837823,1729903842018,-1980.0,0.00056738,120]
[340837824,1729903842027,-1264.0,0.00056738,120]
[340837825,1729903842036,-487.463,0.00056738,2]
[340837826,1729903842044,-788.552,0.00056738,120]
[340837827,1729903842053,-8211.5804105,0.0005689,11]
[340837828,1729903842063,-1280.3,0.000569,60]
[340837829,1729903842072,-787.33,0.00057056,2]
[340837830,1729903842080,-2559.84,0.00057302,30]
[340837831,1729903842090,-3000.0,0.000575,90]
[340837832,1729903842099,-8211.5804105,0.00057514,12]
[340837833,1729903842108,-8211.5804105,0.00057524,12]
[340837834,1729903842118,-7500.0,0.00057534,120]
[340837835,1729903842127,-7500.0,0.00057534,120]
[340837836,1729903842136,-7472.03413944,0.00057534,120]
[340837837,1729903842145,-150.86,0.00057534,120]
[340837838,1729903842154,-8211.5804105,0.0005796,12]
[340837839,1729903842163,-646.219306,0.0005798,120]
[340837840,1729903842172,-646.219306,0.0005798,120]
[340837841,1729903842181,-151.0,0.0005798,120]
[340837842,1729903842190,-207.120679,0.0005798,120]
[340837843,1729903842199,-207.120679,0.0005798,120]
[340837844,1729903842207,-151.262348,0.0005798,120]
[340837845,1729903842216,-151.262348,0.0005798,120]
[340837846,1729903842226,-451.228957,0.0005798,120]
[340837847,1729903842235,-151.0,0.0005798,120]
[340837848,1729903842244,-628.427735,0.0005799,120]
[340837849,1729903842253,-628.427735,0.0005799,120]
[340837850,1729903842263,-151.0,0.0005799,110]
[340837851,1729903842272,-151.0,0.0005799,120]
[340837852,1729903842281,-1618.85950006,0.00058,120]
[340837853,1729903842493,-1000.0,0.00040995,2]
[340837854,1729903842514,-237.22251,0.00043274,14]
[340837855,1729903842523,-237.22251,0.00044782,14]
[340837856,1729903842532,-237.22251,0.00055687,120]
[340837857,1729903842542,-734.48939994,0.00058,120]
[340837858,1729903842551,-2841.64188875,0.00058,120]
[340837859,1729903842565,-976.74740452,0.00058,120]
[340837867,1729903843254,-151.0,0.00043274,14]
[340837868,1729903843263,-323.33651326,0.00048669,2]
[340837869,1729903843272,-237.22251,0.000521,120]
[340837870,1729903843281,-160.57,0.00053181,10]
[340837871,1729903843291,-237.22251,0.00053291,120]
[340837872,1729903843300,-237.22251,0.00053301,120]
[340837873,1729903843309,-237.22251,0.00053311,120]
[340837874,1729903843318,-237.22251,0.00055687,120]
[340837875,1729903843328,-378.15481959,0.00057534,25]
[340837876,1729903843348,-415.84518041,0.00057534,25]
[340837877,1729903843357,-22569.49243003,0.00058,120]
[340837878,1729903843385,-514.96451937,0.00058,120]
[340837879,1729903843400,-151.0,0.00044782,14]
[340837880,1729903843409,-48236.3723763,0.00058,120]
[340837881,1729903843420,-10220.91837822,0.00058,120]
[340837882,1729904455054,-180.97,0.00015342,2]
[340837883,1729904494907,-150.0,0.00015482,2]
[340837884,1729904556577,-150.0,0.00015637,2]
[340837897,1729905032254,-155.75,0.00015342,2]
[340837898,1729905032264,-200.0,0.00023,2]
[340837899,1729905032273,-300.0,0.000358,3]
[340837900,1729905032282,-49.17261432,0.000383,2]
[340837901,1729905032293,-143.82738568,0.000383,2]
[340837902,1729905032303,-331.68554064,0.000422,2]
[340837903,1729905032312,-200.0,0.00042973,7]
[340837904,1729905032321,-200.0,0.00042973,7]
[340837905,1729905032330,-500.0,0.00043273,2]
[340837906,1729905032339,-300.0,0.000437,5]
[340837907,1729905032348,-400.0,0.00045713,7]
[340837908,1729905032357,-63.31828068,0.00046013,2]
[340837909,1729905032367,-653.18224521,0.00046013,2]
[340837910,1729905032378,-283.49947411,0.00046013,2]
[340837911,1729905032388,-466.32,0.000479,7]
[340837912,1729905032397,-666.46,0.000479,7]
[340837913,1729905032407,-18.95278898,0.000482,2]
[340837914,1729905032419,-470.79692717,0.000482,2]
[340837915,1729905032430,-876.40744029,0.000482,2]
[340837916,1729905032439,-3000.0,0.000493,2]
[340837917,1729905032449,-3000.0,0.000493,2]
[340837918,1729905032458,-150.0,0.00049328,4]
[340837919,1729905032467,-41307.0,0.00049329,2]
[340837920,1729905032479,-1115.7689915,0.000499,2]
[340837921,1729905032488,-150.0,0.0005,120]
[340837922,1729905032497,-487.463,0.00050548,2]
[340837924,1729905032506,-1264.0,0.00050548,120]
[340837926,1729905032515,-1085.0,0.00050578,120]
[340837927,1729905032525,-1279.92,0.00050856,2]
[340837928,1729905032535,-250.0,0.00050925,120]
[340837929,1729905032543,-152.0,0.00051042,3]
[340837930,1729905032554,-250.0,0.00051045,120]
[340837931,1729905032562,-151.87,0.00051217,2]
[340837932,1729905032572,-200.0,0.00051475,120]
[340837933,1729905032581,-163.08,0.00051611,2]
[340837934,1729905032590,-160.14,0.00051756,120]
[340837935,1729905032599,-200.0,0.00051816,2]
[340837936,1729905032608,-157.0,0.0005198,2]
[340837937,1729905032617,-23900.0,0.00052039,2]
[340837938,1729905032626,-3000.0,0.000521,2]
[340837939,1729905032635,-1500.0,0.000521,2]
[340837940,1729905032644,-181.06,0.00052274,2]
[340837941,1729905032654,-1115.7689915,0.00052295,120]
[340837942,1729905032663,-638.26,0.00052318,2]
[340837943,1729905032673,-1264.0,0.00053548,120]
[340837944,1729905032683,-788.552,0.00053578,120]
[340837945,1729905032692,-152.537,0.00053738,120]
[340837946,1729905032701,-200.0,0.00054177,2]
[340837947,1729905032710,-638.26,0.00054582,2]
[340837948,1729905032837,-250.0,0.00054687,120]
[340837949,1729905032847,-1115.7689915,0.0005469,120]
[340837950,1729905032856,-213.96040215,0.00054694,26]
[340837951,1729905032865,-1706.56402283,0.000547,15]
[340837952,1729905032874,-166.17964688,0.000547,57]
[340837953,1729905032883,-196.58814488,0.00054789,120]
[340837954,1729905032892,-182.0,0.0005479,2]
[340837955,1729905032901,-47389.45136847,0.0005479,12]
[340837956,1729905032913,-37284.4426121,0.0005479,12]
[340837957,1729905032926,-32973.092774,0.0005479,12]
[340837958,1729905032937,-7700.02921947,0.0005479,12]
[340837959,1729905032948,-3987.45282922,0.0005479,12]
[340837960,1729905038194,-1000.0,0.00049328,4]
[340837961,1729905038203,-256.01,0.0005478,10]
[340837962,1729905038213,-2296.61744625,0.0005479,12]
[340837965,1729905038311,-15181.06921449,0.0005479,12]
[340837966,1729905038321,-246116.100191,0.0005479,11]
[340837967,1729905038330,-153.72,0.0005479,120]
[340837968,1729905038339,-1817.87097081,0.00054794,120]
[340837969,1729905038348,-500.0,0.00054795,120]
[340837970,1729905038358,-634.0,0.00054795,120]
[340837971,1729905038367,-311.37203329,0.00054799,31]
[340837972,1729905038376,-3000.0,0.000548,2]
[340837973,1729905038385,-964.0,0.000548,13]
[340837974,1729905038395,-1500.0,0.000548,2]
[340837975,1729905038404,-186225.51540261,0.000548,120]
[340837976,1729905038413,-1033509.24389917,0.000548,120]
[340837977,1729905038426,-250.0,0.000548,120]
[340837978,1729905038435,-250.0,0.000548,120]
[340837979,1729905038444,-250.0,0.000548,120]
[340837980,1729905038453,-250.0,0.000548,120]
[340837981,1729905038462,-250.0,0.000548,120]
[340837982,1729905038473,-250.0,0.000548,120]
[340837983,1729905038484,-250.0,0.000548,120]
[340837984,1729905038493,-250.0,0.000548,120]
[340837985,1729905038502,-250.0,0.000548,120]
[340837986,1729905038511,-250.0,0.000548,120]
[340837987,1729905038521,-250.0,0.000548,120]
[340837988,1729905038530,-253.252671,0.000548,120]
[340837989,1729905038538,-223.226,0.00054965,104]
[340837990,1729905038547,-17442.69,0.00055,120]
[340837991,1729905038560,-1000.0,0.00055,120]
[340837992,1729905038570,-320.78065729,0.00055,120]
[340837993,1729905038580,-1980.0,0.00055114,120]
[340837994,1729905038589,-154.48,0.00055551,120]
[340837995,1729905038598,-164.51,0.00055796,2]
[340837996,1729905038607,-180.97,0.0005589,2]
[340837997,1729905038615,-1706.56402278,0.00056,15]
[340837998,1729905038625,-735.3530778,0.00056,120]
[340837999,1729905038634,-151.87,0.00056416,120]
[340838000,1729905038643,-1264.0,0.00056548,120]
[340838001,1729905038652,-800.0,0.00056701,120]
[340838002,1729905038662,-184.44,0.00056742,2]
[340838003,1729905038673,-638.26,0.00056846,2]
[340838004,1729905038683,-152.0,0.00056899,4]
[340838005,1729905038692,-10535.0,0.00057,30]
[340838006,1729905038701,-1706.56402278,0.000573,15]
[340838007,1729905038710,-1523.74203236,0.0005739,2]
[340838008,1729905038718,-167.81,0.00057443,120]
[340838009,1729905038727,-2413.0,0.000575,90]
[340838010,1729905038737,-12963.36476955,0.000575,120]
[340838011,1729905038746,-182.0,0.0005779,2]
[340838012,1729905038755,-182.1578,0.000578,2]
[340838013,1729905038764,-8491.0719,0.000579,2]
[340838014,1729905038773,-10493.4278,0.000579,2]
[340838015,1729905038783,-786.21,0.000579,2]
[340838016,1729905038792,-200.0,0.00057909,120]
[340838017,1729905038802,-25662.32729171,0.00058,120]
[340838018,1729905038810,-208.21000005,0.00058,120]
[340838019,1729905038820,-18876.905297,0.00058001,2]
[340838020,1729905038828,-206.7346565,0.00058001,2]
[340838021,1729905038838,-2939.9418088,0.00058001,2]
[340838022,1729905038847,-3030.3962615,0.00058041,2]
[340838023,1729905038857,-1980.0,0.00058114,120]
[340838024,1729905038866,-176.83,0.00058261,2]
[340838025,1729905038875,-1706.56402278,0.000586,15]
[340838026,1729905038884,-7500.0,0.00058689,120]
[340838027,1729905038893,-222.62407103,0.0005869,120]
[340838028,1729905038902,-500.0,0.0005869,120]
[340838029,1729905038911,-153.72,0.0005869,120]
[340838030,1729905038921,-7500.0,0.00058699,120]
[340838031,1729905038931,-7472.03413944,0.00058699,120]
[340838032,1729905038940,-207924.6809,0.000587,2]
[340838033,1729905038949,-148667.0539,0.000587,2]
[340838034,1729905038958,-593.444,0.000587,2]
[340838035,1729905038967,-345.13136792,0.000587,7]
[340838036,1729905038976,-50000.0,0.000588,120]
[340838037,1729905038986,-500.0,0.00058889,120]
[340838038,1729905038994,-188.7312293,0.00059,120]
[340838039,1729905039003,-1250.0,0.00059,30]
[340838040,1729905039012,-568.97093123,0.0005909,2]
[340838041,1729905039021,-638.26,0.0005911,2]
[340838042,1729905039030,-500.0,0.00059163,120]
[340838043,1729905039039,-322.09500478,0.00059252,2]
[340838044,1729905039048,-526.98791472,0.00059252,2]
[340838045,1729905039057,-543.20987654,0.00059252,2]
[340838046,1729905039066,-226.74691602,0.00059252,30]
[340838047,1729905039075,-151.0,0.00059322,120]
[340838048,1729905039084,-165.700835,0.00059322,120]
[340838049,1729905039093,-224.051724,0.00059322,7]
[340838050,1729905039102,-151.0,0.00059322,120]
[340838051,1729905039111,-151.0,0.00059322,120]
[340838052,1729905039120,-151.0,0.00059322,120]
[340838053,1729905039128,-151.0,0.00059322,120]
[340838054,1729905039138,-151.0,0.00059322,120]
[340838055,1729905039147,-360.983165,0.00059322,120]
[340838056,1729905039156,-360.983165,0.00059322,120]
[340838057,1729905039165,-517.0,0.00059342,25]
[340838058,1729905039175,-151.0,0.00059342,120]
[340838059,1729905039184,-387.731583,0.00059342,120]
[340838060,1729905039193,-387.731583,0.00059342,120]
[340838061,1729905039201,-151.0,0.00059342,120]
[340838062,1729905039210,-151.0,0.00059342,120]
[340838063,1729905039219,-151.0,0.00059342,120]
[340838064,1729905039230,-151.0,0.00059342,120]
[340838065,1729905039239,-151.0,0.00059342,120]
[340838066,1729905039249,-360.983165,0.00059342,120]
[340838067,1729905039259,-360.983165,0.00059342,120]
[340838068,1729905039269,-151.0,0.00059342,120]
[340838069,1729905039278,-151.0,0.00059342,14]
[340838070,1729905039289,-791.5347,0.00059342,2]
[340838071,1729905039299,-37697.8548,0.00059342,2]
[340838072,1729905039310,-3016.4936,0.00059342,2]
[340838073,1729905039319,-2505.8366,0.00059342,2]
[340838074,1729905039328,-100000.0,0.00059342,2]
[340838075,1729905039338,-13623.02557349,0.00059342,2]
[340838076,1729905039351,-300.0,0.00059342,2]
[340838077,1729905039362,-849.77002651,0.00059342,2]
[340838078,1729905039371,-500.0,0.00059342,2]
[340838079,1729905039379,-639.7089628,0.00059342,2]
[340838080,1729905039390,-5027.4038372,0.00059342,2]
[340838081,1729905039399,-291.12538912,0.00059342,30]
[340838082,1729905039410,-513.05318471,0.00059342,30]
[340838083,1729905039430,-997.76928,0.00059342,30]
[340838084,1729905039441,-669.67220496,0.00059342,30]
[340838085,1729905039455,-1606.73102151,0.00059342,30]
[340838096,1729905040673,-1000.0,0.00050578,120]
[340838097,1729905040683,-323.33651326,0.0005469,2]
[340838098,1729905040693,-7773.30721788,0.00059342,30]
[340838099,1729905040704,-4091.13325938,0.00059342,30]
[340838100,1729905040713,-208.37030032,0.00059342,30]
[340838101,1729905040723,-151.0,0.00059352,120]
[340838102,1729905040732,-439.899414,0.00059352,120]
[340838103,1729905040742,-151.0,0.00059352,120]
[340838104,1729905040751,-439.899414,0.00059352,120]
[340838105,1729905040761,-151.0,0.00059352,120]
[340838106,1729905040770,-151.0,0.00059352,110]
[340838107,1729905040779,-151.0,0.00059352,120]
[340838108,1729905040788,-242.021079,0.00059352,120]
[340838109,1729905040798,-287.917486,0.00059352,120]
[340838111,1729905040808,-387.731583,0.00059352,120]
[340838113,1729905040818,-151.0,0.00059352,120]
[340838114,1729905040827,-387.731583,0.00059352,120]
[340838115,1729905040837,-151.0,0.00059352,120]
[340838116,1729905040847,-151.0,0.00059352,120]
[340838117,1729905040857,-151.0,0.00059352,120]
[340838119,1729905040866,-151.0,0.00059352,120]
[340838120,1729905040875,-151.0,0.00059352,120]
[340838121,1729905040885,-360.983165,0.00059352,120]
[340838122,1729905040894,-360.983165,0.00059352,120]
[340838123,1729905040903,-79.54834603,0.00059352,120]
[340838124,1729905040914,-71.45165397,0.00059352,120]
[340838125,1729905040924,-151.0,0.00059352,14]
[340838126,1729905040934,-320.039,0.00059352,2]
[340838127,1729905040943,-1113.4946,0.00059352,2]
[340838128,1729905040953,-7287.79861065,0.00059352,2]
[340838129,1729905040965,-9077.54866152,0.00059352,2]
[340838130,1729905040977,-8943.84023489,0.00059352,2]
[340838133,1729905043591,-38.83928521,0.00015482,2]
[340838134,1729905043616,-163.17477833,0.00015482,2]
[340838135,1729905043626,-150.0,0.00058535,2]
[340838136,1729905043636,-1680.81846607,0.00059352,2]
[340838137,1729905043648,-909.66,0.00059352,2]
[340838143,1729905046389,-667.689552,0.00052039,2]
[340838144,1729905651346,200.0,0.00024,60]
[340838154,1729906145145,-2590.64205435,0.00015,2]
[340838160,1729906222355,175.0,0.00043287,120]
[340838161,1729906225114,271.97292958,0.00043287,120]
[340838162,1729906228279,197.15419056,0.00043287,30]
[340838172,1729906231614,-1551.50801344,0.00015,2]
[340838173,1729906231627,-589.02900578,0.00015,2]
[340838174,1729906231638,-322.74328305,0.00015,2]
[340838179,1729906231748,-1004.38980736,0.00015,2]
[340838183,1729906237651,-54300.89508089,0.00015,2]
[340838184,1729906237661,-150.0,0.00015136,2]
[340838185,1729906237671,-157.49,0.00015342,2]
[340838186,1729906237681,-173.6,0.00015342,2]
[340838187,1729906237690,-20117.00013906,0.00018,2]
[340838188,1729906237700,-65911.82547254,0.0002,2]
[340838189,1729906237709,-16656.17016107,0.00021,4]
[340838190,1729906237719,-11948.0604866,0.00022,2]
[340838191,1729906237728,-4865.95074772,0.000232,2]
[340838192,1729906237738,-1509.83502521,0.00025,2]
[340838193,1729906237747,-11833.1675551,0.000379,2]
[340838194,1729906237758,-220.0,0.000392,2]
[340838195,1729906237768,-200.0,0.00039573,2]
[340838196,1729906237777,-181.47,0.0004,2]
[340838197,1729906237787,-284.35925295,0.0004,14]
[340838198,1729906237796,-372.58825453,0.0004,2]
[340838199,1729906237805,-1014.15890552,0.0004,14]
[340838200,1729906237814,-208.91253167,0.0004,2]
[340838201,1729906237824,-250.0,0.00040298,120]
[340838202,1729906237833,-590.5,0.00040448,2]
[340838203,1729906237842,-1762.03839193,0.00042,2]
[340838204,1729906237852,-590.5,0.00042712,2]
[340838205,1729906237862,-62720.18308693,0.00043,2]
[340838206,1729906237871,-6378.89266292,0.00043187,2]
[340838207,1729906237880,-323.33651326,0.00043187,2]
[340838208,1729906237890,-526.98791472,0.00043187,2]
[340838209,1729906237900,-298.08695207,0.00043187,28]
[340838210,1729906237909,-322.09500478,0.00043187,2]
[340838211,1729906237918,-1535.90762052,0.0004319,15]
[340838212,1729906237927,-201.40464432,0.00043273,2]
[340838213,1729906237936,-500.0,0.00043273,2]
[340838214,1729906237946,-2530.17820242,0.00043282,9]
[340838215,1729906237955,-316.28495663,0.00043286,31]
[340838216,1729906237964,-119373.57145713,0.00043287,2]
[340838217,1729906237974,-1210.0,0.00043287,2]
[340838218,1729906237983,-3667.21517956,0.00043287,2]
[340838219,1729906237993,-342.18145273,0.00043287,2]
[340838220,1729906238002,-2953.4346896,0.00043287,2]
[340838221,1729906238012,-4905.88606949,0.00043287,10]
[340838222,1729906238021,-1494.02407496,0.00043287,2]
[340838223,1729906238031,-7249.66230663,0.00043287,2]
[340838224,1729906238040,-1011.45747998,0.00043287,2]
[340838225,1729906238050,-5093.79920842,0.00043287,2]
[340838226,1729906238059,-2685.09505567,0.00043287,2]
[340838227,1729906238069,-2411.83305124,0.00043287,2]
[340838228,1729906238078,-2631.3246496,0.00043287,2]
[340838229,1729906238088,-135041.35968876,0.00043287,2]
[340838230,1729906238097,-3190.61747652,0.00043287,2]
[340838231,1729906238107,-1457.46977148,0.00043287,2]
[340838232,1729906238117,-22415.70781664,0.00043287,2]
[340838233,1729906238126,-7585.98719269,0.00043287,2]
[340838234,1729906238135,-1050.08119383,0.00043287,2]
[340838235,1729906238145,-5867.55135545,0.00043287,2]
[340838236,1729906238155,-854.84589473,0.00043287,2]
[340838237,1729906238164,-187.59189902,0.00043287,2]
[340838238,1729906238174,-1288.74930553,0.00043287,2]
[340838239,1729906238183,-4857.16862447,0.00043287,2]
[340838240,1729906238192,-291.71568766,0.00043287,2]
[340838241,1729906238202,-3944.92956042,0.00043287,2]
[340838242,1729906238211,-22374.20153047,0.00043287,2]
[340838243,1729906238220,-12615.99700335,0.00043287,2]
[340838244,1729906238229,-1888.37386595,0.00043287,2]
[340838245,1729906238239,-180.90031373,0.00043287,2]
[340838246,1729906238248,-5489.08548403,0.00043287,2]
[340838247,1729906238257,-643.0,0.00043287,2]
[340838248,1729906238266,-953.82088566,0.00043287,2]
[340838249,1729906238276,-9424.81459886,0.00043287,2]
[340838250,1729906238285,-5000.0,0.00043287,4]
[340838251,1729906238294,-282.37804821,0.00043287,2]
[340838252,1729906238303,-1881745.65875574,0.00043287,2]
[340838253,1729906238315,-1003.95269913,0.00043287,2]
[340838255,1729906239630,-183.0,0.00042,2]
[340838257,1729906239640,-949.51444176,0.00043287,2]
[340838261,1729906239651,-1980.90213203,0.00043287,2]
[340838295,1729906242718,-3125.67858268,0.00043287,2]
[340838299,1729906242849,-2387.01222128,0.00043287,2]
[340838300,1729906242860,-10702.46022601,0.00043287,2]
[340838301,1729906242871,-7200.30793374,0.00043287,2]
[340838325,1729906262094,586.3329,0.00043287,30]
[340838330,1729906468358,165.64154751,0.00043281,60]
[340838339,1729907435479,-177.39633841,0.00015242,2]
[340838340,1729907435489,-160.42,0.00015342,2]
[340838341,1729907435499,-180.97,0.00015342,2]
[340838342,1729907435508,-150.0,0.00015482,2]
[340838343,1729907435518,-1400.46382832,0.00017433,2]
[340838344,1729907435529,-177.39633841,0.00017434,2]
[340838345,1729907435539,-177.39633841,0.00019625,2]
[340838346,1729907435548,-300.0,0.00019725,2]
[340838347,1729907435558,-220.53700604,0.00021384,2]
[340838348,1729907435569,-420.0,0.00021484,2]
[340838349,1729907435578,-1427.39,0.00023401,2]
[340838350,1729907435587,-587.0,0.00023401,2]
[340838351,1729907435597,-823.0,0.00025488,2]
[340838352,1729907435606,-291.8,0.00031844,2]
[340838353,1729907435615,-169.78543567,0.00032877,2]
[340838354,1729907435624,-150.0,0.00034548,10]
[340838355,1729907435633,-369.56124826,0.00034849,120]
[340838356,1729907435642,-813.76,0.00035562,2]
[340838357,1729907435652,-819.510473,0.00037014,2]
[340838358,1729907435661,-184.76698249,0.000372,103]
[340838359,1729907435669,-250.0,0.00037302,120]
[340838360,1729907435678,-172.37,0.00037646,120]
[340838361,1729907435688,-813.76,0.00037826,2]
[340838362,1729907435697,-6750.2179,0.00038464,2]
[340838363,1729907435706,-1020.88,0.00038663,2]
[340838364,1729907435716,-202.01,0.00038789,120]
[340838365,1729907435725,-200.0,0.0003906,2]
[340838366,1729907435735,-327.67,0.00039189,2]
[340838367,1729907435744,-272.205,0.00039203,54]
[340838368,1729907435753,-173.60067016,0.00039203,54]
[340838369,1729907435763,-4358.2894,0.00039301,7]
[340838370,1729907435772,-19305.32860111,0.0003937,2]
[340838371,1729907435783,-675.65734826,0.0003937,2]
[340838372,1729907435794,-3919.01405063,0.0003937,2]
[340838373,1729907435804,-319.54,0.0003954,2]
[340838374,1729907435813,-150.0,0.00039792,2]
[340838375,1729907435823,-1006.37,0.0003999,30]
[340838376,1729907435832,-29458.0,0.0004,2]
[340838377,1729907435842,-1000.0,0.00040004,2]
[340838378,1729907435851,-813.76,0.0004009,2]
[340838379,1729907435860,-250.0,0.00040205,2]
[340838380,1729907435869,-167.8,0.00040237,120]
[340838381,1729907435879,-250.0,0.00040276,2]
[340838382,1729907435888,-154.32,0.00040394,2]
[340838383,1729907435899,-171.33,0.00040468,2]
[340838384,1729907435908,-154.08,0.00041096,2]
[340838385,1729907435920,-11528.0,0.000412,3]
[340838386,1729907435929,-319.54,0.00041517,2]
[340838387,1729907435938,-162.81,0.0004229,10]
[340838388,1729907435947,-11528.0,0.000423,5]
[340838389,1729907435956,-813.76,0.00042354,2]
[340838390,1729907435966,-332.47,0.0004256,7]
[340838391,1729907435975,-11105.35,0.0004256,7]
[340838392,1729907435985,-5608.26,0.0004256,7]
[340838393,1729907435994,-4109.26,0.0004256,7]
[340838394,1729907436004,-5037.54,0.0004256,7]
[340838395,1729907436013,-2273.35844141,0.0004286,2]
[340838396,1729907436022,-5903.92,0.00042971,7]
[340838397,1729907436032,-5905.15,0.00042971,7]
[340838398,1729907436041,-1596.73072072,0.00043179,15]
[340838399,1729907436050,-300.86581844,0.00043179,28]
[340838400,1729907436059,-8504.7904,0.00043179,2]
[340838401,1729907436069,-787.8681,0.00043179,2]
[340838402,1729907436078,-324.59430199,0.00043192,2]
[340838403,1729907436087,-1006.37,0.00043269,30]
[340838404,1729907436097,-1006.37,0.00043269,30]
[340838405,1729907436107,-9397.42009547,0.00043279,2]
[340838406,1729907436135,-834.06811505,0.00043279,2]
[340838407,1729907437815,-1000.0,0.00040205,2]
[340838408,1729907437825,-75592.2548025,0.00043279,2]
[340838409,1729907437837,-63879.14332406,0.00043279,2]
[340838410,1729907437846,-1998.3788671,0.00043279,2]
[340838411,1729907437856,-17137.06285839,0.00043279,2]
[340838412,1729907437866,-2787.84865985,0.00043279,2]
[340838413,1729907437876,-10037.34557063,0.00043279,7]
[340838414,1729907437885,-75113.21665664,0.00043279,2]
[340838415,1729907437895,-1194.999999,0.00043279,2]
[340838416,1729907437905,-497.549673,0.00043279,5]
[340838417,1729907437915,-160000.0,0.00043292,30]
[340838418,1729907437924,-1480.4,0.00043292,30]
[340838419,1729907437933,-319.54,0.00043494,2]
[340838420,1729907437943,-8305.12,0.00043591,2]
[340838421,1729907437953,-171.51,0.00043881,2]
[340838422,1729907437962,-154.08,0.00044031,2]
[340838423,1729907437971,-168.69,0.00044361,2]
[340838424,1729907437981,-508.28962283,0.00044417,2]
[340838425,1729907437990,-167.66,0.00044586,2]